bitfinex-derivatives/quotes_BNBF0:USTF0_20250710
["timestamp","ask_amount","ask_price","bid_price","bid_amount"]
[1752129693957,0.25946333,671.08,670.33,1.664]
[1752129695153,0.25946333,671.08,670.09,1.6664362]
[1752129695954,0.25946333,671.08,670.08,1.6664362]
[1752129696157,0.25946333,671.08,670.06,1.6664362]
[1752129697453,0.25946333,671.08,669.85,0.25950493]
[1752129697454,2.2041299,671.06,670.01,1.6664362]
[1752129698056,2.2041299,671.06,670.02,2.252]
[1752129699154,2.2041299,671.05,670.02,2.252]
[1752129700057,2.2041299,671.01,670.05,1.6664362]
[1752129700358,2.2041299,671.0,670.05,1.6664362]
[1752129701461,2.2041299,671.02,670.03,1.6664362]
[1752129701862,2.2041299,671.03,670.03,1.6664362]
[1752129702157,2.2041299,671.02,670.03,1.6664362]
[1752129703564,2.2041299,671.01,670.04,1.6664362]
[1752129704164,2.2041299,671.0,670.04,1.6664362]
[1752129706168,0.25946333,671.08,670.04,1.6664362]
[1752129706169,2.2041299,670.99,670.04,1.6664362]
[1752129707068,2.2041299,670.98,670.05,1.6664362]
[1752129708265,2.2041299,670.97,670.05,1.6664362]
[1752129709973,2.2041299,670.97,670.06,1.6664362]
[1752129710172,2.2041299,670.96,670.06,1.6664362]
[1752129710974,2.2041299,670.99,670.04,1.6664362]
[1752129711271,2.2041299,670.99,670.02,2.252]
[1752129711272,2.2041299,670.91,670.02,2.252]
[1752129712374,2.2041299,670.92,670.02,2.252]
[1752129712670,2.2041299,670.91,670.02,2.252]
[1752129714072,2.2041299,670.91,669.96,1.6664362]
[1752129715371,2.2041299,670.92,669.96,1.6664362]
[1752129716476,2.2041299,670.92,669.95,1.6664362]
[1752129716872,2.2041299,670.92,669.96,2.375]
[1752129717176,2.2041299,670.93,669.96,2.375]
[1752129720380,2.2041299,670.95,669.96,2.375]
[1752129720882,2.2041299,670.93,669.96,4.0414362]
[1752129721582,2.2041299,670.93,669.96,2.375]
[1752129722185,2.2041299,670.94,669.96,2.375]
[1752129722486,2.2041299,670.93,669.96,4.0414362]
[1752129726286,2.2041299,670.94,669.96,4.0414362]
[1752129727887,2.2041299,670.97,669.96,2.375]
[1752129729588,2.2041299,670.94,669.96,2.375]
[1752129730788,2.2041299,670.92,669.96,2.375]
[1752129732391,2.2041299,670.9,669.96,2.375]
[1752129734594,2.2041299,670.89,669.96,2.375]
[1752129736291,2.2041299,670.83,669.96,4.0414362]
[1752129736689,2.2041299,670.82,669.97,1.6664362]
[1752129739196,2.2041299,670.84,669.96,4.0414362]
[1752129739399,2.2041299,670.83,669.96,4.0414362]
[1752129740497,2.2041299,670.83,669.97,1.6664362]
[1752129741102,2.2041299,670.85,669.96,2.375]
[1752129741301,2.2041299,670.86,669.96,2.375]
[1752129741598,2.2041299,670.85,669.96,2.375]
[1752129742402,2.2041299,670.84,669.96,2.375]
[1752129743402,2.2041299,670.85,669.96,2.375]
[1752129744401,2.2041299,670.84,669.96,2.375]
[1752129744601,2.2041299,670.85,669.96,2.375]
[1752129745102,2.2041299,670.86,669.96,2.375]
[1752129746300,2.2041299,670.85,669.96,2.375]
[1752129747502,2.2041299,670.84,669.96,2.375]
[1752129747802,2.2041299,670.83,669.96,2.375]
[1752129748001,2.2041299,670.82,669.96,2.375]
[1752129748601,2.2041299,670.81,669.96,2.375]
[1752129749299,2.2041299,670.8,669.96,4.0414362]
[1752129750102,2.2041299,670.79,669.97,1.6664362]
[1752129750297,2.2041299,670.78,669.97,1.6664362]
[1752129750501,2.2041299,670.78,669.98,1.6664362]
[1752129750902,2.2041299,670.77,669.99,1.6664362]
[1752129751105,2.2041299,670.78,669.98,1.6664362]
[1752129751498,2.2041299,670.8,669.96,4.0414362]
[1752129751803,2.2041299,670.79,669.98,1.6664362]
[1752129752403,2.2041299,670.78,669.98,1.6664362]
[1752129752600,2.2041299,670.89,669.96,2.375]
[1752129753504,2.2041299,670.72,670.03,1.6664362]
[1752129753705,2.2041299,670.69,670.05,1.6664362]
[1752129753900,2.2041299,670.73,670.01,1.6664362]
[1752129754504,2.2041299,670.92,669.96,2.375]
[1752129755401,2.2041299,670.91,669.96,2.375]
[1752129755603,2.2041299,670.93,669.96,2.375]
[1752129756405,2.2041299,670.92,669.96,2.375]
[1752129758708,2.2041299,670.97,669.96,2.375]
[1752129759210,2.2041299,670.96,669.96,2.375]
[1752129760509,2.2041299,670.99,669.96,2.375]
[1752129761106,2.2041299,671.02,669.99,1.6664362]
[1752129761311,2.2041299,671.03,670.0,1.6664362]
[1752129761509,2.2041299,670.98,670.04,1.6664362]
[1752129762807,2.2041299,670.92,670.08,1.6664362]
[1752129763212,2.2041299,670.92,670.07,1.6664362]
[1752129763512,2.2041299,670.88,670.04,1.6664362]
[1752129764207,2.2041299,670.86,670.06,1.6664362]
[1752129764409,2.2041299,670.87,670.06,1.6664362]
[1752129764709,2.2041299,670.89,670.08,1.6664362]
[1752129764906,2.2041299,670.89,670.09,1.6664362]
[1752129765407,2.2041299,670.85,670.12,1.6664362]
[1752129766910,0.25946333,671.08,670.13,1.6664362]
[1752129766911,2.2041299,670.83,670.13,1.6664362]
[1752129767314,2.2041299,670.83,670.14,1.6664362]
[1752129767510,2.2041299,670.83,670.14,3.4664362]
[1752129770416,2.2041299,670.82,670.14,1.8]
[1752129772619,2.2041299,670.81,670.14,3.4664362]
[1752129773019,2.2041299,670.85,670.14,1.8]
[1752129774415,2.2041299,670.84,670.14,1.8]
[1752129776116,2.2041299,670.86,670.14,1.8]
[1752129777316,2.2041299,670.87,670.14,1.8]
[1752129777717,2.2041299,670.86,670.14,1.8]
[1752129779121,2.2041299,670.87,670.14,1.8]
[1752129779322,2.2041299,670.86,670.14,1.8]
[1752129780521,2.2041299,670.87,670.14,1.8]
[1752129782827,2.2041299,670.85,670.14,1.8]
[1752129784823,2.2041299,670.84,670.14,1.8]
[1752129785128,2.2041299,670.85,670.14,1.8]
[1752129786029,2.2041299,670.84,670.14,1.8]
[1752129786224,2.2041299,670.83,670.14,1.8]
[1752129787831,2.2041299,670.82,670.14,1.8]
[1752129788133,2.2041299,670.8,670.14,1.8]
[1752129790327,2.2041299,670.79,670.14,1.8]
[1752129791534,2.2041299,670.78,670.14,1.8]
[1752129794135,2.2041299,670.77,670.14,1.8]
[1752129795136,2.2041299,670.75,670.14,3.4740484]
[1752129795536,2.2041299,670.77,670.14,1.8]
[1752129795733,0.25955622,670.6,670.14,1.8]
[1752129820654,0.25955622,670.6,670.11,1.676126]
[1752129821757,0.25955622,670.6,670.1,1.676126]
[1752129822953,0.25955622,670.6,670.11,2.373]
[1752129823153,0.25955622,670.6,670.14,1.676126]
[1752129823754,0.25955622,670.6,670.13,1.676126]
[1752129823956,0.25955622,670.6,670.14,1.676126]
[1752129832367,0.25955622,670.6,670.12,1.676126]
[1752129835565,0.25955622,670.6,670.13,1.676126]
[1752129839174,0.25955622,670.6,670.14,1.676126]
[1752129840575,0.25955622,670.6,670.13,1.676126]
[1752129842172,0.25955622,670.6,670.15,1.676126]
[1752129845179,0.25955622,670.6,670.16,1.676126]
[1752129845677,0.25955622,670.6,670.15,1.676126]
[1752129848077,0.25955622,670.6,670.16,1.676126]
[1752129848285,0.25955622,670.6,670.15,1.676126]
[1752129849583,0.25955622,670.6,670.16,1.676126]
[1752129850188,0.25955622,670.6,670.15,1.676126]
[1752129850490,0.25955622,670.6,670.16,1.676126]
[1752129852488,0.25955622,670.6,670.15,1.676126]
[1752129853790,0.25955622,670.6,670.16,2.201]
[1752129863803,0.25955622,670.6,670.16,3.877126]
[1752129866504,0.25955622,670.6,670.17,1.676126]
[1752129867505,0.25955622,670.6,670.18,1.676126]
[1752129868805,0.25955622,670.6,670.19,1.676126]
[1752129869205,0.25955622,670.6,670.2,1.676126]
[1752129870805,0.25955622,670.6,670.04,1.676126]
[1752129872507,0.25955622,670.6,670.05,1.911]
[1752129878310,0.25955622,670.6,670.06,1.676126]
[1752129878510,0.25955622,670.6,670.05,3.587126]
[1752129880607,0.25955622,670.6,670.07,1.676126]
[1752129881706,0.25955622,670.6,670.08,1.676126]
[1752129882408,0.25955622,670.6,670.07,1.676126]
[1752129882611,0.25955622,670.6,670.08,1.676126]
[1752129883912,0.25955622,670.6,670.05,1.911]
[1752129887515,0.25955622,670.6,670.0,1.676126]
[1752129889519,0.25955622,670.6,669.98,1.676126]
[1752129890922,0.25955622,670.6,669.99,1.659]
[1752129901029,0.25955622,670.6,670.01,1.676126]
[1752129901235,0.25955622,670.6,669.99,3.335126]
[1752129902235,0.25955622,670.6,670.0,1.676126]
[1752129902537,0.25955622,670.6,669.99,1.659]
[1752129921948,0.25955622,670.6,669.87,1.676126]
[1752129922849,0.25955622,670.6,669.72,2.2330526]
[1752129923350,0.25955622,670.6,669.69,0.2596085]
[1752129924749,0.25955622,670.6,669.7,1.764]
[1752129925149,0.25955622,670.6,669.7,3.9952418]
[1752129925749,0.25955622,670.6,669.86,1.6734314]
[1752129926046,0.25955622,670.6,669.7,3.9952418]
[1752129926845,0.25955622,670.6,669.7,1.764]
[1752129937957,0.25955622,670.6,669.9,1.6743579]
[1752129941160,0.25955622,670.6,669.89,1.6743579]
[1752129941458,0.25955622,670.6,669.91,1.6743579]
[1752129942258,0.25955622,670.6,669.79,1.6743579]
[1752129942459,0.25955622,670.6,669.78,1.6743579]
[1752129946660,0.25955622,670.6,669.74,1.6743579]
[1752129949760,0.25955622,670.6,669.7,1.764]
[1752129952267,0.25955622,670.6,669.7,3.4383579]
[1752129953662,0.25955622,670.6,669.7,1.764]
[1752129961277,0.25955622,670.6,669.7,3.4383579]
[1752129963276,0.25955622,670.6,669.72,1.6743579]
[1752129963677,0.25955622,670.6,669.7,1.764]
[1752129963678,0.25955622,670.6,669.76,1.6743579]
[1752129963878,2.47356992,670.6,669.77,1.6743579]
[1752129966277,2.2140137,670.59,669.77,1.6743579]
[1752129966573,2.2140137,670.58,669.78,1.6743579]
[1752129967277,0.25955622,670.6,669.8,1.6743579]
[1752129967278,2.2140137,670.56,669.8,1.6743579]
[1752129968378,2.2140137,670.55,669.81,1.6743579]
[1752129968877,2.2140137,670.54,669.81,1.6743579]
[1752129969377,2.2140137,670.54,669.82,2.192]
[1752129970173,2.2140137,670.54,669.82,3.8663579]
[1752129970378,0.25955622,670.6,669.82,2.192]
[1752129974573,2.47356992,670.6,669.82,2.192]
[1752129974776,2.2140137,670.59,669.82,2.192]
[1752129976775,2.2140137,670.53,669.83,1.6743579]
[1752129976975,2.2140137,670.52,669.83,1.6743579]
[1752129977980,2.2140137,670.52,669.82,2.192]
[1752129978178,2.2140137,670.54,669.82,3.8671791]
[1752129981281,2.2140137,670.59,669.82,2.192]
[1752129982484,2.2140137,670.58,669.82,2.192]
[1752129984581,2.47356992,670.6,669.82,2.192]
[1752129985885,0.25955622,670.6,669.82,2.192]
[1752129995688,2.2140137,670.64,669.82,2.192]
[1752129995886,5.5319638,671.66,669.82,2.192]
[1752129995887,0.25968114,670.41,669.82,2.192]
[1752130005501,0.25968114,670.41,669.65,1.6751791]
[1752130006101,0.25968114,670.41,669.67,1.6751791]
[1752130006700,0.25968114,670.41,669.66,1.6751791]
[1752130007099,0.25968114,670.41,669.67,1.6751791]
[1752130008001,0.25968114,670.41,669.53,1.6751791]
[1752130008699,0.25968114,670.41,669.54,2.209]
[1752130009299,0.25968114,670.41,669.54,3.8841791]
[1752130009602,0.25968114,670.41,669.54,2.209]
[1752130013305,0.25968114,670.41,669.54,3.8841791]
[1752130013504,0.25968114,670.41,669.55,1.6751791]
[1752130015202,0.25968114,670.41,669.56,1.6751791]
[1752130017506,0.25968114,670.41,669.61,1.6751791]
[1752130017706,0.25968114,670.41,669.63,1.6751791]
[1752130017905,0.25968114,670.41,669.64,1.6751791]
[1752130018203,0.25968114,670.41,669.65,1.6751791]
[1752130018401,0.25968114,670.41,669.64,1.6751791]
[1752130018607,0.25968114,670.41,669.65,1.6751791]
[1752130019502,0.25968114,670.41,669.67,1.6751791]
[1752130020810,0.25968114,670.41,669.66,1.6751791]
[1752130022010,0.25968114,670.41,669.68,1.6751791]
[1752130023117,0.25968114,670.41,669.67,1.6751791]
[1752130025020,0.25968114,670.41,669.68,1.6751791]
[1752130032027,0.25968114,670.41,669.54,2.209]
[1752130032028,0.25968114,670.41,669.69,1.6751791]
[1752130033027,2.47369484,670.41,669.72,1.6751791]
[1752130034432,2.47369484,670.41,669.73,1.6751791]
[1752130035234,2.2140137,670.39,669.74,1.6751791]
[1752130036836,2.2140137,670.39,669.62,2.2324772]
[1752130036837,2.2140137,670.4,669.73,1.6751791]
[1752130039435,2.2140137,670.4,669.74,1.6751791]
[1752130039938,2.2140137,670.39,669.74,1.6751791]
[1752130040639,2.2140137,670.38,669.75,1.6751791]
[1752130044341,2.2140137,670.37,669.76,1.6751791]
[1752130044541,2.2140137,670.38,669.75,1.6751791]
[1752130045042,2.2140137,670.39,669.74,1.6751791]
[1752130046741,2.2140137,670.38,669.75,1.6751791]
[1752130048137,2.2140137,670.39,669.75,1.6751791]
[1752130048336,0.25968114,670.41,669.54,2.209]
[1752130048337,2.2140137,670.4,669.74,1.6751791]
[1752130050341,2.2140137,670.39,669.74,1.6751791]
[1752130050544,2.47369484,670.41,669.73,1.6751791]
[1752130052440,2.47369484,670.41,669.74,1.6751791]
[1752130052741,2.47369484,670.41,669.73,1.6751791]
[1752130053440,0.25968114,670.41,669.68,1.6751791]
[1752130054343,0.25968114,670.41,669.69,1.6751791]
[1752130055145,0.25968114,670.41,669.7,1.6751791]
[1752130055442,0.25968114,670.41,669.72,1.6751791]
[1752130055641,2.2140137,670.36,669.79,1.6751791]
[1752130056345,2.2140137,670.37,669.78,1.6751791]
[1752130059752,2.2140137,670.37,669.79,1.6751791]
[1752130060053,2.2140137,670.37,669.78,1.6751791]
[1752130060553,2.2140137,670.38,669.78,1.6751791]
[1752130060857,2.2140137,670.37,669.79,1.6751791]
[1752130061158,2.2140137,670.36,669.79,1.6751791]
[1752130061357,2.2140137,670.37,669.79,1.6751791]
[1752130062956,2.2140137,670.38,669.79,1.6751791]
[1752130063160,2.2140137,670.37,669.79,1.6751791]
[1752130065462,2.2140137,670.37,669.8,1.989]
[1752130065661,0.25968114,670.41,669.83,1.6751791]
[1752130066262,0.25968114,670.41,669.84,1.6751791]
[1752130066461,0.25968114,670.41,669.8,1.989]
[1752130066462,0.25968114,670.41,669.82,1.6751791]
[1752130067058,0.25968114,670.41,669.86,1.6751791]
[1752130067662,0.25968114,670.41,669.85,1.6751791]
[1752130068458,0.25968114,670.41,669.84,1.6751791]
[1752130068962,0.25968114,670.41,669.83,1.6751791]
[1752130069463,0.25968114,670.41,669.84,1.6751791]
[1752130069662,0.25968114,670.41,669.85,1.6751791]
[1752130069860,0.25968114,670.41,669.86,1.6751791]
[1752130070060,0.25968114,670.41,669.82,1.6751791]
[1752130070964,0.25968114,670.41,669.8,3.6641791]
[1752130071158,0.25968114,670.41,669.84,1.6751791]
[1752130071564,0.25968114,670.41,669.83,1.6751791]
[1752130072161,0.25968114,670.41,669.85,1.6751791]
[1752130074161,0.25968114,670.41,669.88,1.6751791]
[1752130074361,0.25968114,670.41,669.85,1.6751791]
[1752130075363,0.25968114,670.41,669.9,1.6751791]
[1752130076462,0.25968114,670.41,669.89,1.6751791]
[1752130077067,0.25968114,670.41,669.88,1.6751791]
[1752130078469,0.25968114,670.41,669.87,1.6751791]
[1752130078668,0.25968114,670.41,669.88,1.6751791]
[1752130078865,0.25968114,670.41,669.9,1.6751791]
[1752130079070,0.25968114,670.41,669.89,1.6751791]
[1752130080070,0.25968114,670.41,669.9,1.484]
[1752130080769,0.25968114,670.41,669.9,3.1591791]
[1752130081369,0.25968114,670.41,669.9,1.484]
[1752130082672,0.25968114,670.41,669.9,3.1591791]
[1752130082871,0.25968114,670.41,669.91,1.6751791]
[1752130083170,0.25968114,670.41,669.9,3.1591791]
[1752130083370,0.25968114,670.41,669.9,1.484]
[1752130083574,0.25968114,670.41,669.9,3.1591791]
[1752130084570,0.25968114,670.41,669.9,1.484]
[1752130084776,0.25968114,670.41,669.91,1.6751791]
[1752130085275,0.25968114,670.41,669.9,3.1591791]
[1752130085672,0.25968114,670.41,669.91,1.6751791]
[1752130085876,0.25968114,670.41,669.9,1.484]
[1752130090478,0.25968114,670.41,669.91,1.6751791]
[1752130090977,0.25968114,670.41,669.9,3.1591791]
[1752130091882,0.25968114,670.41,669.9,1.484]
[1752130097787,0.25968114,670.41,669.9,3.1591791]
[1752130098888,0.25968114,670.41,669.91,1.6751791]
[1752130099283,0.25968114,670.41,669.9,3.1591791]
[1752130100987,0.25968114,670.41,669.9,1.484]
[1752130112692,0.25968114,670.41,669.9,3.1529735]
[1752130113492,0.25968114,670.41,669.91,1.6689735]
[1752130114994,0.25968114,670.41,669.92,1.6689735]
[1752130115997,0.25968114,670.41,669.9,1.484]
[1752130122602,0.25968114,670.41,669.9,3.1552719]
[1752130123300,0.25968114,670.41,669.92,1.6712719]
[1752130123998,0.25968114,670.41,669.93,1.6712719]
[1752130124500,0.25968114,670.41,669.97,1.6712719]
[1752130124698,0.25968114,670.41,669.9,1.484]
[1752130129003,0.25968114,670.41,669.96,1.6712719]
[1752130129405,0.25968114,670.41,669.97,1.6712719]
[1752130130008,0.25968114,670.41,669.98,1.6712719]
[1752130130205,0.25968114,670.41,669.97,1.6712719]
[1752130130407,0.25968114,670.41,669.98,1.6712719]
[1752130131410,0.25968114,670.41,669.99,1.6712719]
[1752130132110,0.25968114,670.41,669.98,1.6712719]
[1752130132506,0.25968114,670.41,669.99,1.6712719]
[1752130134110,0.25968114,670.41,669.98,1.6712719]
[1752130134406,0.25968114,670.41,669.4,0.25972281]
[1752130134407,0.25968114,670.41,669.99,1.6712719]
[1752130134711,0.25968114,670.41,670.01,1.6712719]
[1752130135313,0.25968114,670.41,670.02,1.6712719]
[1752130135515,0.25968114,670.41,669.93,1.6712719]
[1752130135810,0.25968114,670.41,669.92,1.6712719]
[1752130136814,0.25968114,670.41,669.93,2.162]
[1752130152830,0.25968114,670.41,669.9,1.6712719]
[1752130154934,0.25968114,670.41,669.91,1.6712719]
[1752130155934,0.25968114,670.41,669.89,1.6712719]
[1752130156335,0.25968114,670.41,669.9,1.785]
[1752130173445,0.25968114,670.41,669.9,3.4562719]
[1752130174142,0.25968114,670.41,669.91,1.6712719]
[1752130174443,0.25968114,670.41,669.92,1.6712719]
[1752130175144,0.25968114,670.41,669.9,3.4562719]
[1752130175843,0.25968114,670.41,669.9,1.785]
[1752130177550,0.25968114,670.41,669.9,3.4562719]
[1752130178246,0.25968114,670.41,669.9,1.785]
[1752130183655,0.25968114,670.41,669.9,3.4562719]
[1752130184954,0.25968114,670.41,669.91,1.6712719]
[1752130185453,0.25968114,670.41,669.9,3.4562719]
[1752130185850,0.25968114,670.41,669.92,1.6712719]
[1752130187355,0.25968114,670.41,669.93,1.6712719]
[1752130188059,0.25968114,670.41,669.95,1.6712719]
[1752130189065,0.25968114,670.41,669.96,1.6712719]
[1752130189461,0.25968114,670.41,669.95,1.6712719]
[1752130190864,0.25968114,670.41,669.96,1.948]
[1752130191364,0.25968114,670.41,669.96,3.6192719]
[1752130194362,0.25968114,670.41,669.97,1.6712719]
[1752130194566,0.25968114,670.41,669.96,3.6192719]
[1752130195368,0.25968114,670.41,669.98,1.6712719]
[1752130195863,0.25968114,670.41,669.99,1.6712719]
[1752130196269,0.25968114,670.41,670.0,1.6712719]
[1752130196566,0.25968114,670.41,669.99,1.6712719]
[1752130197266,0.25968114,670.41,669.96,1.948]
[1752130198674,0.25968114,670.41,670.0,1.6771338]
[1752130199371,0.25968114,670.41,670.01,1.6771338]
[1752130199971,0.25968114,670.41,670.02,1.6771338]
[1752130201071,0.25968114,670.41,670.01,1.6771338]
[1752130202876,0.25968114,670.41,669.98,1.6771338]
[1752130203373,0.25968114,670.41,669.98,1.6771727]
[1752130203972,0.25968114,670.41,669.99,1.6771727]
[1752130205878,0.25968114,670.41,669.97,1.6771727]
[1752130207481,0.25968114,670.41,669.98,1.6771727]
[1752130207781,0.25968114,670.41,670.01,1.6771727]
[1752130208383,0.25968114,670.41,669.96,3.6251727]
[1752130208678,2.2178027,670.67,669.96,1.948]
[1752130208883,0.2595901,670.53,669.96,1.948]
[1752130209479,0.2595901,670.53,669.97,1.6771727]
[1752130209781,0.2595901,670.53,669.99,1.6771727]
[1752130211785,0.2595901,670.53,670.0,1.6771727]
[1752130211981,0.2595901,670.53,670.05,1.6771727]
[1752130212182,0.2595901,670.53,670.07,1.6771727]
[1752130213085,0.2595901,670.53,670.06,1.6771727]
[1752130213785,0.2595901,670.53,669.57,0.25960075]
[1752130213786,0.2595901,670.53,670.12,1.6771727]
[1752130214183,0.2595901,670.53,670.1,1.6771727]
[1752130215187,0.2595901,670.53,670.11,1.604]
[1752130223494,2.2178027,670.89,670.11,1.604]
[1752130223692,2.2178027,670.86,670.11,1.604]
[1752130224195,0.25953299,670.68,670.11,1.604]
[1752130269246,0.25953299,670.68,670.12,1.670896]
[1752130270147,0.25953299,670.68,670.13,1.670896]
[1752130271244,0.25953299,670.68,670.14,1.670896]
[1752130271748,0.25953299,670.68,670.13,1.670896]
[1752130272042,0.25953299,670.68,670.14,1.670896]
[1752130273049,0.25953299,670.68,670.11,1.604]
[1752130275144,0.25953299,670.68,669.99,1.670896]
[1752130277749,0.25953299,670.68,670.0,2.397]
[1752130281853,0.25953299,670.68,670.08,1.670896]
[1752130282151,0.25953299,670.68,670.09,1.670896]
[1752130283453,0.25953299,670.68,670.11,1.670896]
[1752130283750,0.25953299,670.68,670.09,1.670896]
[1752130284452,0.25953299,670.68,670.08,1.670896]
[1752130284652,0.25953299,670.68,670.07,1.670896]
[1752130287955,0.25953299,670.68,670.08,1.670896]
[1752130289955,0.25953299,670.68,670.01,1.670896]
[1752130290157,0.25953299,670.68,670.02,1.670896]
[1752130290552,0.25953299,670.68,670.03,1.670896]
[1752130291855,0.25953299,670.68,670.02,1.670896]
[1752130293261,0.25953299,670.68,670.03,1.670896]
[1752130293660,0.25953299,670.68,670.11,1.670896]
[1752130294059,0.25953299,670.68,670.12,1.670896]
[1752130294264,0.25953299,670.68,670.13,1.670896]
[1752130294556,0.25953299,670.68,670.16,1.670896]
[1752130294763,0.25953299,670.68,670.17,1.670896]
[1752130295163,0.25953299,670.68,670.2,1.670896]
[1752130295361,0.25953299,670.68,670.19,1.670896]
[1752130296265,0.25953299,670.68,670.18,1.670896]
[1752130296664,0.25953299,670.68,670.17,1.670896]
[1752130296862,0.25953299,670.68,670.19,2.091]
[1752130305270,0.25953299,670.68,670.19,3.761896]
[1752130305776,0.25953299,670.68,670.2,1.670896]
[1752130305968,0.25953299,670.68,670.19,3.761896]
[1752130306570,0.25953299,670.68,670.2,1.670896]
[1752130306874,0.25953299,670.68,670.21,1.670896]
[1752130307671,0.25953299,670.68,670.22,1.670896]
[1752130309979,0.25953299,670.68,670.2,1.670896]
[1752130316778,0.25953299,670.68,670.21,1.670896]
[1752130318280,0.25953299,670.68,670.22,1.954]
[1752130338097,0.25953299,670.68,670.22,3.624896]
[1752130338697,0.25953299,670.68,670.22,1.954]
[1752130354316,0.25953299,670.68,670.23,1.670896]
[1752130354618,0.25953299,670.68,670.24,1.670896]
[1752130355322,0.25953299,670.68,670.25,1.670896]
[1752130356722,0.25953299,670.68,670.24,1.670896]
[1752130359620,0.25953299,670.68,670.26,1.670896]
[1752130363429,0.25953299,670.68,670.27,1.670896]
[1752130365127,0.25953299,670.68,670.28,1.670896]
[1752130365831,0.25953299,670.68,670.22,1.954]
[1752130375332,0.25953299,670.68,670.07,1.670896]
[1752130377435,0.25953299,670.68,670.1,1.670896]
[1752130378835,0.25953299,670.68,670.11,2.429]
[1752130381033,0.25953299,670.68,670.11,4.099896]
[1752130381835,0.25953299,670.68,670.12,1.670896]
[1752130382537,0.25953299,670.68,670.13,1.670896]
[1752130382739,0.25953299,670.68,670.21,1.670896]
[1752130383033,0.25953299,670.68,670.11,2.429]
[1752130383034,0.25953299,670.68,670.25,1.670896]
[1752130385435,0.25953299,670.68,670.24,1.670896]
[1752130386634,0.25953299,670.68,670.23,1.670896]
[1752130387140,0.25953299,670.68,670.24,1.670896]
[1752130390540,0.25953299,670.68,670.22,1.670896]
[1752130392841,0.25953299,670.68,670.23,1.670896]
[1752130394544,0.25953299,670.68,670.22,1.670896]
[1752130395342,0.25953299,670.68,670.23,1.670896]
[1752130395545,0.25953299,670.68,670.2,1.670896]
[1752130400456,0.25953299,670.68,670.21,1.670896]
[1752130400850,0.25953299,670.68,670.2,1.670896]
[1752130404050,0.25953299,670.68,670.22,1.670896]
[1752130407756,0.25953299,670.68,670.23,1.670896]
[1752130410655,0.25953299,670.68,670.22,1.670896]
[1752130410860,0.25953299,670.68,670.24,1.670896]
[1752130411056,0.25953299,670.68,670.23,1.670896]
[1752130411654,0.25953299,670.68,670.24,1.670896]
[1752130413758,0.25953299,670.68,670.26,1.670896]
[1752130415459,0.25953299,670.68,670.11,4.099896]
[1752130419258,0.25953299,670.68,670.11,2.429]
[1752130424463,0.25954267,670.54,670.11,2.429]
[1752130429974,0.25954267,670.54,669.99,1.67537087]
[1752130430274,0.25954267,670.54,669.98,1.67537087]
[1752130430574,0.25954267,670.54,669.97,1.67537087]
[1752130430875,0.25954267,670.54,669.98,1.67537087]
[1752130431475,0.25954267,670.54,669.97,1.67537087]
[1752130432179,0.25954267,670.54,669.98,1.67537087]
[1752130432475,0.25954267,670.54,669.97,1.67537087]
[1752130433175,0.25954267,670.54,669.98,2.416]
[1752130433976,0.25954267,670.54,669.98,4.09137087]
[1752130434479,0.25954267,670.54,669.98,2.416]
[1752130436280,0.25954267,670.54,669.98,4.09137087]
[1752130436680,0.25954267,670.54,669.98,2.416]
[1752130441181,0.25954267,670.54,670.0,1.67537087]
[1752130441683,0.25954267,670.54,669.99,1.67537087]
[1752130442384,0.25954267,670.54,669.98,2.416]
[1752130444190,0.25954267,670.54,669.99,1.67537087]
[1752130444785,0.25954267,670.54,669.98,2.416]
[1752130473314,0.25954267,670.54,669.66,1.66932162]
[1752130473610,0.25954267,670.54,669.65,1.66932162]
[1752130475816,0.25954267,670.54,669.66,2.226]
[1752130476021,0.25954267,670.54,669.66,3.89532162]
[1752130477219,0.25954267,670.54,669.66,2.226]
[1752130479218,0.25954267,670.54,669.66,3.89532162]
[1752130479722,0.25954267,670.54,669.66,2.226]
[1752130480222,0.25954267,670.54,669.66,3.89532162]
[1752130480927,0.25954267,670.54,669.68,1.66932162]
[1752130481227,0.25954267,670.54,669.66,2.226]
[1752130481827,0.25954267,670.54,669.67,1.66932162]
[1752130482725,0.25954267,670.54,669.68,1.66932162]
[1752130483129,0.25954267,670.54,669.7,1.66932162]
[1752130483524,0.25954267,670.54,669.75,1.66932162]
[1752130486433,0.25954267,670.54,669.76,1.66932162]
[1752130489832,0.25954267,670.54,669.77,2.531]
[1752130490033,0.25954267,670.54,669.77,4.20032162]
[1752130490533,0.25954267,670.54,669.8,1.66932162]
[1752130491333,0.25954267,670.54,669.82,1.66932162]
[1752130492635,0.25954267,670.54,669.8,1.66932162]